[Event "GER-chT Youth Countries 2018"]
[Site "Wurzburg"]
[Date "2018.10.04"]
[Round "3"]
[White "Noeldner, Julian"]
[Black "Evering, Soeren"]
[Result "1-0"]
[ECO "C55"]
[WhiteElo "2024"]
[BlackElo "1854"]
[Annotator "NA RC"]
[PlyCount "31"]
[EventDate "2018.10.03"]
[EventType "team-tourn"]
[EventCountry "GER"]
[SourceTitle "playchess.com"]
[Source "ChessBase"]
[SourceQuality "1"]
[TimeControl "40/5400+30:1800+30"]

{[%evp 19,31,0,0,0,4,-31,173,179,343,322,349,368,654,691]} 1. e4 {[%emt 0:00:00]} e5 {[%emt 0:00:00]} 2. Nf3 {[%emt 0:00:00]} Nc6 {[%emt 0:00:00]} 3. Bc4 {[%emt 0:00:19]} Nf6 {[%emt 0:00:16]} 4. d3 {[%emt 0:00:11]} Be7 {[%emt 0:00:39]} 5. O-O {[%emt 0:00:06]} O-O {[%emt 0:00:16]} 6. Re1 {[%emt 0:00:04]} d6 {[%emt 0:00:23]} 7. a4 {[%emt 0:00:06]} Na5 {[%emt 0:00:36]} 8. Ba2 {[%emt 0:00:06]} c5 {[%emt 0:00:54]} 9. c3 {[%emt 0:00:12]} a6 {[%emt 0:06:29]} 10. b4 {[%emt 0:04:59]} cxb4 {[%emt 0:01:58]} 11. cxb4 {[%emt 0:00:06]} Nc6 {[%emt 0:00:05]} 12. Bd2 {[%emt 0:04:16]} b5 $2 {[%emt 0:01:14]} (12... Bg4 $15 {keeps the upper hand.}) 13. axb5 {[%emt 0:00:16]} axb5 $2 {[%emt 0:01:06] [#]} (13... Nd4 14. Nxd4 exd4) 14. Bxf7+ $1 {[%emt 0:00:34]} Rxf7 {[%emt 0:02:31]} 15. Rxa8 {[%emt 0:00:05]} h6 $18 {[%emt 0:02:57]} (15... Nd7 16. Be3 Ndb8) 16. Qc2 {[%emt 0:00:40]} 1-0

[Event "GER-chT Youth Countries 2018"]
[Site "Wurzburg"]
[Date "2018.10.04"]
[Round "3"]
[White "Hund, Sarah"]
[Black "Werner, Denis"]
[Result "0-1"]
[ECO "B23"]
[WhiteElo "2023"]
[BlackElo "1817"]
[Annotator "NA RC"]
[PlyCount "90"]
[EventDate "2018.10.03"]
[EventType "team-tourn"]
[EventCountry "GER"]
[SourceTitle "playchess.com"]
[Source "ChessBase"]
[SourceQuality "1"]
[TimeControl "40/5400+30:1800+30"]

1. e4 {[%emt 0:00:00]} c5 {[%emt 0:00:19]} 2. Nc3 {[%emt 0:00:00]} Nc6 {[%emt 0:01:13]} 3. f4 {[%emt 0:00:47]} e6 {[%emt 0:01:17]} 4. Nf3 {[%emt 0:00:48]} d5 {[%emt 0:01:04]} 5. Bb5 {[%emt 0:01:13]} Nf6 {[%emt 0:00:53]} 6. Bxc6+ {[%emt 0:03:21]} bxc6 {[%emt 0:00:49]} 7. e5 {[%emt 0:01:58]} Nd7 {[%emt 0:02:37]} 8. d3 {[%emt 0:01:08] B23: Closed Sicilian: Lines without g3} (8. O-O c4 9. Kh1 Be7 10. Qe1 g6 11. b3 Rb8 12. bxc4 dxc4 13. a4 O-O 14. Ne4 c5 15. Nd6 Bxd6 16. exd6 {½-½ (56) Petenyi,T (2450)-Gazik,V (2501) Banska Stiavnica 2018}) 8... Ba6 {[%emt 0:01:59]} 9. b3 {[%emt 0:01:27]} c4 {[%emt 0:02:35]} 10. dxc4 {[%emt 0:03:32]} Bb4 {[%emt 0:01:52]} 11. Bd2 {[%emt 0:01:50]} dxc4 {[%emt 0:03:10]} 12. Ne4 {[%emt 0:03:01]} Be7 {[%emt 0:01:06]} 13. Qe2 $146 {[%emt 0:08:49]} ({Predecessor:} 13. Nd6+ Bxd6 14. exd6 {1-0 (30) Waters,M (2110)-Hartikainen,M Buenos Aires 1992}) 13... Qb6 {[%emt 0:07:09]} 14. bxc4 {[%emt 0:08:11]} Nc5 {[%emt 0:04:38]} 15. Be3 {[%emt 0:04:36]} Qa5+ {[%emt 0:03:38]} 16. Ned2 {[%emt 0:01:38]} Qa4 {[%emt 0:04:00]} 17. Nd4 {[%emt 0:06:21]} Nd7 {[%emt 0:07:40]} 18. O-O {[%emt 0:04:29]} Nb6 {[%emt 0:00:58]} 19. f5 {[%emt 0:04:25]} Nxc4 {[%emt 0:03:13]} 20. fxe6 {[%emt 0:01:28]} Nxe5 {[%emt 0:05:31]} 21. Qh5 {[%emt 0:05:16]} Bf6 {[%emt 0:01:44]} 22. Ne4 {[%emt 0:08:52]} Bxf1 {[%emt 0:01:52]} 23. exf7+ {[%emt 0:01:54]} Nxf7 {[%emt 0:04:26]} 24. Nd6+ {[%emt 0:01:21]} Kd7 {[%emt 0:02:36]} 25. Qxf7+ {[%emt 0:03:34]} Kxd6 {[%emt 0:01:09]} 26. Bf4+ {[%emt 0:01:55]} (26. Qe6+ $142 Kc7 27. Bf4+ Kb6 28. Rb1+ Ka6 29. Nxc6 Rac8 {[#]} 30. Nxa7+ $1 {[%mdl 512]} Rc6 31. Nxc6) 26... Kc5 {[%emt 0:02:19]} 27. Ne6+ {[%emt 0:03:51]} Kc4 {[%emt 0:01:18]} 28. Rxf1 {[%emt 0:00:33]} Kc3 {[%emt 0:02:59]} 29. Qd7 $2 {[%emt 0:02:16]} (29. Qh5 $18 Bd4+ 30. Kh1) 29... Rad8 {[%emt 0:04:12]} 30. Nxd8 $4 {[%emt 0:05:33]} (30. Qb7 $18 {and all is fine.}) 30... Qd4+ {[%emt 0:00:19]} 31. Qxd4+ {[%emt 0:00:50]} Bxd4+ {[%emt 0:00:21]} 32. Kh1 {[%emt 0:00:29]} Rxd8 {[%emt 0:00:23]} 33. g4 {[%emt 0:04:49]} c5 {[%emt 0:01:41]} 34. Re1 {[%emt 0:01:12]} Rd7 {[%emt 0:01:04]} 35. Kg2 $2 {[%emt 0:00:24]} (35. Re2 {was the only chance.}) 35... Rf7 {[%emt 0:00:34]} 36. Bb8 {[%emt 0:01:35]} Kxc2 {[%emt 0:00:22]} 37. Re4 {[%emt 0:01:02]} Kd3 {[%emt 0:00:32]} 38. Re8 {[%emt 0:00:25]} c4 {[%emt 0:00:30]} 39. Rd8 {[%emt 0:00:29]} Re7 {[%emt 0:01:54]} 40. Bg3 {[%emt 0:00:49]} c3 {[%emt 0:01:25]} 41. Bf2 {[%emt 0:31:32]} Re4 $19 {[%emt 0:31:28]} 42. Kf3 {[%emt 0:00:21]} c2 {[%emt 0:00:14]} 43. Rc8 {[%emt 0:00:07]} Bxf2 {[%emt 0:00:19]} 44. Kxf2 {[%emt 0:00:38]} Rc4 {[%emt 0:00:06]} 45. Rd8+ {[%emt 0:00:04]} Kc3 {[%emt 0:00:05]} 0-1

[Event "GER-chT Youth Countries 2018"]
[Site "Wurzburg"]
[Date "2018.10.04"]
[Round "3"]
[White "Boehm, Jana"]
[Black "Muedder, Melanie"]
[Result "1/2-1/2"]
[ECO "B32"]
[WhiteElo "2001"]
[BlackElo "1826"]
[Annotator "NA RC"]
[PlyCount "82"]
[EventDate "2018.10.03"]
[EventType "team-tourn"]
[EventCountry "GER"]
[SourceTitle "playchess.com"]
[Source "ChessBase"]
[SourceQuality "1"]
[TimeControl "40/5400+30:1800+30"]

{[%evp 43,82,231,222,220,235,215,228,224,235,154,153,82,32767,83,96,32767,83,80,32767,56,57,50,54,55,62,57,55,56,58,61,56,50,32767,50,32767,42,43,58,64,12,18]} 1. e4 {[%emt 0:00:00]} c5 {[%emt 0:00:00]} 2. Nf3 {[%emt 0:00:00]} Nc6 {[%emt 0:00:00]} 3. d4 {[%emt 0:00:00]} cxd4 {[%emt 0:00:00]} 4. Nxd4 {[%emt 0:00:00]} e5 {[%emt 0:00:00]} 5. Nb5 {[%emt 0:00:00]} d6 {[%emt 0:00:14]} 6. c4 {[%emt 0:00:00]} Be7 {[%emt 0:00:22]} 7. N5c3 {[%emt 0:00:15] B32: Sicilian: Löwenthal and Kalashnikov Variations} (7. N1c3 a6 8. Na3 Be6 9. Be2 Rc8 10. O-O Nf6 11. Be3 O-O 12. Qd2 Nd7 13. Rac1 Nc5 14. f3 Nd4 15. Bxd4 exd4 16. Qxd4 Qb6 17. Rc2 Bf6 18. Qe3 Qb4 19. Qd2 Na4 20. Nd5 {½-½ (37) Anand,V (2779)-Caruana,F (2823) Saint Louis 2016}) 7... f5 {[%emt 0:02:40]} 8. exf5 {[%emt 0:00:17]} Bxf5 {[%emt 0:01:00]} 9. Bd3 {[%emt 0:00:21]} Be6 {[%emt 0:01:01]} 10. Nd5 {[%emt 0:00:51]} Nf6 {[%emt 0:05:14]} 11. Nbc3 {[%emt 0:00:26]} O-O {[%emt 0:04:09]} 12. O-O {[%emt 0:01:09]} Nd4 {[%emt 0:07:23]} 13. Be3 {[%emt 0:13:33]} Nf5 $146 {[%emt 0:10:28]} ({Predecessor:} 13... g6 14. Nxe7+ Qxe7 15. Bxd4 exd4 {1-0 (43) Alekseev,E (2614)-Klukin,K (2236) St Petersburg 2017}) 14. Nxe7+ {[%emt 0:03:12]} Nxe7 {[%emt 0:03:14]} 15. Qe2 {[%emt 0:12:04]} Qa5 {[%emt 0:08:59]} 16. a3 {[%emt 0:13:35]} Rac8 {[%emt 0:10:47]} 17. b4 {[%emt 0:02:06]} Qd8 {[%emt 0:01:19]} 18. Rac1 {[%emt 0:07:44]} a6 {[%emt 0:08:07]} 19. f3 {[%emt 0:08:32]} Qd7 {[%emt 0:13:50]} 20. Rfd1 {[%emt 0:02:30]} d5 {[%emt 0:03:08]} 21. Bc5 {[%emt 0:02:20]} d4 {[%emt 0:03:49]} 22. Qxe5 {[%emt 0:03:11]} Nc6 {[%emt 0:00:27]} 23. Qg3 {[%emt 0:03:15]} Rfe8 {[%emt 0:01:32]} 24. Ne4 {[%emt 0:06:20]} Nxe4 {[%emt 0:01:08]} 25. Bxe4 {[%emt 0:00:08]} Qf7 {[%emt 0:00:51]} 26. Bxc6 {[%emt 0:05:52]} Rxc6 {[%emt 0:00:33]} 27. Bxd4 {[%emt 0:01:03]} (27. Rxd4 $142 b6 28. Rf4) 27... Rxc4 {[%emt 0:00:39]} 28. Rxc4 {[%emt 0:00:50]} Bxc4 {[%emt 0:00:06]} 29. Re1 {[%emt 0:01:12]} Rxe1+ {[%emt 0:02:01]} 30. Qxe1 {[%emt 0:00:05]} Qe6 {[%emt 0:01:56]} 31. Qxe6+ {[%emt 0:01:22]} (31. Qc3 $16) 31... Bxe6 {[%emt 0:00:05]} 32. Kf2 {[%emt 0:00:08]} Kf7 {[%emt 0:00:29]} 33. Ke3 {[%emt 0:00:05]} g6 {[%emt 0:02:34]} 34. Ke4 {[%emt 0:00:25]} Bc4 {[%emt 0:03:40]} 35. Ke5 {[%emt 0:00:53]} Ke7 {[%emt 0:00:56]} 36. Bc5+ {[%emt 0:00:29]} Kf7 {[%emt 0:02:04]} 37. Kd4 {[%emt 0:02:14]} Bf1 {[%emt 0:00:22]} 38. g3 {[%emt 0:00:44]} Ke6 {[%emt 0:00:21]} 39. a4 {[%emt 0:02:08]} Bg2 {[%emt 0:01:40]} 40. Ke4 {[%emt 0:01:20]} Bf1 {[%emt 0:01:38]} 41. f4 {[%emt 0:30:56]} Bg2+ $11 {[%emt 0:02:11]} 1/2-1/2

[Event "GER-chT Youth Countries 2018"]
[Site "Wurzburg"]
[Date "2018.10.04"]
[Round "3"]
[White "Grund, Sebastian"]
[Black "Musiolik, David"]
[Result "1-0"]
[ECO "D02"]
[WhiteElo "1992"]
[BlackElo "2057"]
[Annotator "NA RC"]
[PlyCount "69"]
[EventDate "2018.10.03"]
[EventType "team-tourn"]
[EventCountry "GER"]
[SourceTitle "playchess.com"]
[Source "ChessBase"]
[SourceQuality "1"]
[TimeControl "40/5400+30:1800+30"]

1. d4 {[%emt 0:00:00]} d5 {[%emt 0:00:00]} 2. Nf3 {[%emt 0:00:00]} Nf6 {[%emt 0:00:00]} 3. c4 {[%emt 0:00:00]} e6 {[%emt 0:00:00]} 4. g3 {[%emt 0:00:00]} Bb4+ {[%emt 0:00:00]} 5. Bd2 {[%emt 0:00:00]} Be7 {[%emt 0:00:01]} 6. Bg2 {[%emt 0:00:05]} O-O {[%emt 0:00:08]} 7. O-O {[%emt 0:00:07]} Nbd7 {[%emt 0:00:01]} 8. Qc2 {[%emt 0:00:13] E11: Bogo-Indian} Ne4 {[%emt 0:00:07]} 9. Nc3 {[%emt 0:01:02]} Nxd2 {[%emt 0:00:33]} 10. Nxd2 {[%emt 0:01:26]} c6 {[%emt 0:03:09]} 11. e4 {[%emt 0:00:39]} dxc4 {[%emt 0:16:24]} 12. Nxc4 {[%emt 0:00:18]} Nb6 {[%emt 0:08:17]} 13. Nxb6 {[%emt 0:00:33]} Qxb6 {[%emt 0:03:53]} 14. Rfd1 {[%emt 0:00:47]} Rd8 {[%emt 0:04:29]} 15. Na4 {[%emt 0:05:59]} Qc7 {[%emt 0:03:22] [#]} 16. Rac1 $146 {[%emt 0:02:06]} Bf6 {[%emt 0:02:30]} 17. e5 {[%emt 0:10:11]} Be7 {[%emt 0:03:24]} 18. Be4 {[%emt 0:07:00]} g6 {[%emt 0:01:21]} 19. Bg2 {[%emt 0:07:43]} Bd7 {[%emt 0:03:58]} 20. Nc3 {[%emt 0:05:27]} Rac8 {[%emt 0:08:28]} 21. Ne4 {[%emt 0:03:16]} Qa5 {[%emt 0:02:17]} 22. Qe2 {[%emt 0:10:06]} Qxa2 {[%emt 0:07:52]} 23. Qf3 {[%emt 0:25:18]} Qa5 {[%emt 0:05:39]} (23... c5 $1 $11) 24. Qf4 {[%emt 0:04:17]} Kg7 {[%emt 0:03:17]} 25. Nf6 {[%emt 0:00:55]} Qb4 {[%emt 0:01:15] [#]} 26. g4 {[%emt 0:05:38]} (26. h4 $1 $16) 26... Bxf6 {[%emt 0:06:11]} ({Viel schwächer wäre} 26... Qxb2 $6 27. Rb1 $16) 27. exf6+ {[%emt 0:00:35]} Kh8 {[%emt 0:02:50]} 28. Rc5 {[%emt 0:02:06]} b6 $2 {[%emt 0:04:21] [#]} (28... e5 $14 29. Rxe5 Be6) 29. Qh6 $3 {[%emt 0:00:32]} Rg8 {[%emt 0:01:06] [#]} 30. Rh5 $3 {[%emt 0:03:01]} gxh5 {[%emt 0:04:47]} 31. Be4 {[%emt 0:00:10]} Rxg4+ {[%emt 0:01:00]} 32. Kh1 {[%emt 0:00:16]} Kg8 {[%emt 0:01:37]} 33. Bxh7+ {[%emt 0:00:23]} Kh8 {[%emt 0:00:01]} 34. Bg6+ {[%emt 0:00:10]} Kg8 {[%emt 0:00:03]} 35. Qg7# {[%emt 0:00:07]} 1-0

[Event "GER-chT Youth Countries 2018"]
[Site "Wurzburg"]
[Date "2018.10.04"]
[Round "3"]
[White "Laux, Dominik"]
[Black "Farokhi, Keyvan"]
[Result "1/2-1/2"]
[ECO "A45"]
[WhiteElo "1987"]
[BlackElo "1855"]
[Annotator "NA RC"]
[PlyCount "67"]
[EventDate "2018.10.03"]
[EventType "team-tourn"]
[EventCountry "GER"]
[SourceTitle "playchess.com"]
[Source "ChessBase"]
[SourceQuality "1"]
[TimeControl "40/5400+30:1800+30"]

1. d4 {[%emt 0:00:00]} Nf6 {[%emt 0:00:00]} 2. Bg5 {[%emt 0:00:22]} Ne4 {[%emt 0:00:56]} 3. Bf4 {[%emt 0:00:21]} d5 {[%emt 0:00:44]} 4. e3 {[%emt 0:00:22]} e6 {[%emt 0:01:00]} 5. Bd3 {[%emt 0:00:22]} Bd6 {[%emt 0:01:08]} 6. Bxd6 {[%emt 0:05:34] A45: Trompowsky Attack} (6. Bxe4 Bxf4 7. exf4 dxe4 8. Nc3 Nc6 9. Nge2 f5 10. Qd2 O-O 11. O-O-O a5 12. h3 a4 13. a3 b5 {½-½ (58) Vitiugov,N (2726)-Grandelius,N (2643) Doha 2016}) 6... Nxd6 {[%emt 0:01:11]} 7. Nd2 {[%emt 0:01:19]} Nd7 {[%emt 0:01:58]} 8. Ngf3 {[%emt 0:00:29]} c5 {[%emt 0:01:37]} 9. c3 {[%emt 0:01:26]} O-O {[%emt 0:03:04]} 10. O-O {[%emt 0:03:22]} b6 $146 {[%emt 0:03:07]} ({Predecessor:} 10... c4 11. Bc2 f5 12. Qe2 {½-½ (35) Trombik,K (2017)-Melzer,P (2101) Czechia 2013}) 11. e4 {[%emt 0:02:46]} cxd4 {[%emt 0:03:56]} 12. Nxd4 {[%emt 0:02:31]} Nc5 {[%emt 0:01:08]} 13. Qe2 {[%emt 0:05:50]} Nxd3 {[%emt 0:02:52]} 14. Qxd3 {[%emt 0:00:40]} dxe4 {[%emt 0:00:56]} 15. Nxe4 {[%emt 0:01:42]} Nf5 {[%emt 0:01:01]} 16. Rfd1 {[%emt 0:05:00]} e5 {[%emt 0:01:59]} 17. Nxf5 {[%emt 0:03:59]} Bxf5 {[%emt 0:00:20]} 18. Qf3 {[%emt 0:03:04]} Bxe4 {[%emt 0:00:26]} 19. Qxe4 {[%emt 0:00:12]} Qc7 {[%emt 0:04:40]} 20. Rd5 {[%emt 0:06:19]} Rfe8 {[%emt 0:05:30]} 21. Rad1 {[%emt 0:03:24]} Rad8 {[%emt 0:01:08]} 22. Kf1 {[%emt 0:06:59]} Rxd5 {[%emt 0:06:10]} 23. Qxd5 {[%emt 0:07:00]} g6 {[%emt 0:00:34]} 24. Ke2 {[%emt 0:02:46]} Kg7 {[%emt 0:03:00]} 25. c4 {[%emt 0:03:59]} Re7 {[%emt 0:10:00]} 26. h3 f5 {[%emt 0:06:10]} 27. b4 {[%emt 0:06:42]} Qb7 {[%emt 0:01:01]} 28. h4 Qxd5 {[%emt 0:13:08]} 29. Rxd5 {[%emt 0:10:59]} Rc7 {[%emt 0:03:49]} 30. Kd3 {[%emt 0:04:43]} Kf6 {[%emt 0:00:22]} 31. g3 {[%emt 0:01:53]} Ke6 {[%emt 0:01:06]} 32. f3 {[%emt 0:03:14]} h6 {[%emt 0:05:20]} 33. a4 $2 {[%emt 0:01:06] [#]} (33. Kc3 $11) 33... Rd7 $19 {[%emt 0:09:01]} 34. Rxd7 {[%emt 0:00:28]} 1/2-1/2

[Event "GER-chT Youth Countries 2018"]
[Site "Wurzburg"]
[Date "2018.10.04"]
[Round "3"]
[White "Wiesner, Paula"]
[Black "Block, Timo"]
[Result "1-0"]
[ECO "D36"]
[WhiteElo "1969"]
[BlackElo "1777"]
[Annotator "NA RC"]
[PlyCount "63"]
[EventDate "2018.10.03"]
[EventType "team-tourn"]
[EventCountry "GER"]
[SourceTitle "playchess.com"]
[Source "ChessBase"]
[SourceQuality "1"]
[TimeControl "40/5400+30:1800+30"]

1. d4 d5 2. c4 e6 3. Nc3 Nf6 4. cxd5 exd5 5. Bg5 c6 6. Qc2 Bg4 {D36: Queen's Gambit Declined: Exchange Variation: Main line (5 Bg5 c6 6 Qc2)} (6... Be7 7. e3 Nbd7 8. Bd3 h6 9. Bh4 Nh5 10. Bxe7 Qxe7 11. O-O-O Nb6 12. Nf3 Nf6 13. Kb1 Be6 14. Ka1 O-O-O 15. Na4 Kb8 16. Rc1 Rhe8 17. Nc5 Bc8 {1-0 (50) Nepomniachtchi,I (2757)-Nisipeanu,L (2672) Dortmund 2018}) 7. e3 Nbd7 8. Bd3 Bd6 9. f3 Bh5 10. Nge2 Bg6 11. e4 Be7 $146 ({Predecessor:} 11... dxe4 12. fxe4 Bb4 13. O-O-O Qa5 14. Bf4 O-O 15. Rhe1 {0-1 (24) Witek,T (2105)-Chojnacki,S (2235) Rewal 2007}) 12. e5 Bxd3 13. Qxd3 Ng8 14. Be3 Nb6 15. b3 Rc8 16. O-O a6 17. Ng3 c5 18. dxc5 Bxc5 19. Bxc5 Rxc5 20. Nf5 Kf8 21. Ne4 Rc6 22. Ned6 Qc7 23. Nd4 Rc3 24. Qf5 Nh6 25. Qf4 Qe7 26. Rac1 Rxc1 27. Rxc1 g5 28. Qf6 Qxf6 29. exf6 Ng8 30. Rc7 Nxf6 31. Rxf7+ Kg8 32. Ne6 1-0

[Event "GER-chT Youth Countries 2018"]
[Site "Wurzburg"]
[Date "2018.10.04"]
[Round "3"]
[White "Yankelevich, Michael"]
[Black "Philipp, Mathias"]
[Result "1/2-1/2"]
[ECO "C41"]
[WhiteElo "1961"]
[BlackElo "2076"]
[Annotator "NA RC"]
[PlyCount "96"]
[EventDate "2018.10.03"]
[EventType "team-tourn"]
[EventCountry "GER"]
[SourceTitle "playchess.com"]
[Source "ChessBase"]
[SourceQuality "1"]
[TimeControl "40/5400+30:1800+30"]

1. e4 {[%emt 0:00:00]} d6 {[%emt 0:00:00]} 2. d4 {[%emt 0:00:56]} Nf6 {[%emt 0:00:00]} 3. Nc3 {[%emt 0:00:22]} e5 {[%emt 0:00:00]} 4. Nf3 {[%emt 0:00:46]} Nbd7 {[%emt 0:00:00]} 5. Bc4 {[%emt 0:02:25]} Be7 {[%emt 0:00:08]} 6. a4 {[%emt 0:02:28]} c6 {[%emt 0:00:16] C41: Philidor Defence} (6... O-O 7. O-O c6 8. Re1 b6 9. h3 a6 10. Ba2 Rb8 11. Be3 b5 12. axb5 axb5 13. b4 Bb7 14. Bb3 exd4 15. Nxd4 d5 16. exd5 Bxb4 17. Bd2 cxd5 18. Ncxb5 Bxd2 19. Qxd2 {½-½ (30) Kryvoruchko,Y (2705)-Laznicka,V (2671) Brest 2018}) 7. Ba2 {[%emt 0:03:30]} a5 {[%emt 0:00:24]} 8. O-O {[%emt 0:00:49]} h6 {[%emt 0:00:10]} 9. Qd3 $146 {[%emt 0:01:22]} ({Predecessor:} 9. Re1 Qc7 10. h3 g5 11. Nh2 Nf8 12. dxe5 dxe5 {1-0 (30) Gaponenko,I (2411)-Xheladini,M (2246) Zuerich 2002}) 9... g5 {[%emt 0:05:36]} 10. Re1 {[%emt 0:01:10]} Qc7 {[%emt 0:00:27]} 11. Ne2 {[%emt 0:02:58]} Nf8 {[%emt 0:11:24]} 12. Ng3 {[%emt 0:05:08]} Rh7 {[%emt 0:02:11]} 13. Be3 {[%emt 0:05:00]} Ng4 {[%emt 0:09:46]} 14. Nf5 {[%emt 0:04:56]} Nxe3 {[%emt 0:00:12]} 15. Rxe3 {[%emt 0:00:31]} Bxf5 {[%emt 0:03:21]} 16. exf5 {[%emt 0:01:55]} f6 {[%emt 0:00:11]} 17. Rd1 {[%emt 0:01:38]} h5 {[%emt 0:09:49]} 18. Nd2 {[%emt 0:04:09]} d5 {[%emt 0:05:21]} 19. f3 {[%emt 0:02:54]} O-O-O {[%emt 0:04:02]} 20. c3 {[%emt 0:01:23]} Bd6 {[%emt 0:02:02]} 21. Nf1 {[%emt 0:01:04]} Nd7 {[%emt 0:01:35]} 22. Re2 {[%emt 0:04:09]} g4 {[%emt 0:01:43]} 23. Kh1 {[%emt 0:01:26]} Rg7 {[%emt 0:03:39]} 24. Rb1 {[%emt 0:02:13]} gxf3 {[%emt 0:02:11]} 25. Qxf3 {[%emt 0:00:13]} Rg4 {[%emt 0:04:24]} 26. dxe5 {[%emt 0:02:28]} fxe5 {[%emt 0:02:09]} 27. Qh3 {[%emt 0:01:15]} Nf6 {[%emt 0:01:05]} 28. Bb3 {[%emt 0:01:18]} e4 {[%emt 0:05:19]} 29. Ne3 {[%emt 0:03:20]} Rg5 {[%emt 0:00:32]} 30. Rd1 {[%emt 0:02:14]} Be5 {[%emt 0:02:44]} 31. Bc2 {[%emt 0:05:39] [#]} c5 {[%emt 0:04:22]} (31... h4 $1 $19 {[%mdl 512]} 32. Rde1 (32. Qxh4 Rh5) 32... Rdg8) 32. Qh4 {[%emt 0:01:03]} Qg7 $2 {[%emt 0:00:20]} (32... Bf4 $17 33. Rf1 Bxe3 34. Rxe3 Rdg8) 33. Nxd5 $1 {[%emt 0:10:30]} Rxd5 {[%emt 0:05:13]} ({Don't play} 33... Nxd5 $6 34. Qxe4 Nf4 35. Rxd8+ (35. Qxe5 Rxd1+ 36. Bxd1 Nxe2 $11) 35... Kxd8 36. Qxe5 $16) (33... Rg4 $11 34. Qf2 Nxd5 35. Qxc5+ (35. Bxe4 Rf4 $11) 35... Nc7 36. Rxd8+ Kxd8) 34. Rxd5 {[%emt 0:00:40]} Nxd5 {[%emt 0:00:23]} 35. Qxe4 {[%emt 0:00:17]} Nf4 {[%emt 0:02:41]} 36. Qxe5 {[%emt 0:00:53]} Nxe2 {[%emt 0:01:17]} 37. Qxe2 {[%emt 0:00:05]} Kb8 {[%emt 0:00:42]} 38. Qf2 {[%emt 0:02:37]} (38. Qe8+ $16 Ka7 39. Qe3) 38... Qf6 {[%emt 0:03:49]} 39. Qxc5 {[%emt 0:00:40]} Rg4 {[%emt 0:00:37]} (39... h4 $14) 40. Qe3 {[%emt 0:01:35]} h4 {[%emt 0:01:30]} 41. Qe8+ {[%emt 0:39:13]} Ka7 {[%emt 0:32:12]} 42. Qe2 {[%emt 0:02:38]} Rg7 {[%emt 0:03:32]} 43. h3 {[%emt 0:01:15]} Re7 {[%emt 0:02:57]} 44. Qf2+ {[%emt 0:00:08]} Ka8 {[%emt 0:00:49]} 45. Qd4 $2 {[%emt 0:02:00]} (45. Bd3 $11) 45... Re1+ {[%emt 0:00:00]} 46. Kh2 {[%emt 0:00:00]} Qg5 $2 {[%emt 0:00:00]} (46... Qe7 $19 47. Qh8+ Ka7 48. Qd4+ b6) 47. Qh8+ {[%emt 0:00:00]} Ka7 {[%emt 0:00:00]} 48. Qd4+ {[%emt 0:00:00]} Ka8 $11 {[%emt 0:00:00]} 1/2-1/2